[Event "Titled Tuesday Blitz July 4 Late 2023"]
[White "Paravyan, David"]
[Black "marik_spb"]
[WhiteFideId "4194985"]
[WhiteElo "2979"]
[BlackElo "2493"]
[Result "1/2-1/2"]
[Round "1"]
[TimeControl "180+2"]
[Date "2023.07.04"]
[WhiteClock "0:00:35"]
[BlackClock "0:00:08"]
[Board "19"]

1. e4 {[%clk 0:02:50]}  c6 {[%clk 0:02:56]} 2. d4 {[%clk 0:02:50]}  d5 {[%clk 0:02:56]} 3. Nc3 {[%clk 0:02:49]}  dxe4 {[%clk 0:02:57]} 4. Nxe4 {[%clk 0:02:50]}  Nf6 {[%clk 0:02:57]} 5. Nxf6+ {[%clk 0:02:50]}  exf6 {[%clk 0:02:58]} 6. c3 {[%clk 0:02:51]}  Bd6 {[%clk 0:02:59]} 7. Bd3 {[%clk 0:02:51]}  Na6 {[%clk 0:02:59]} 8. Ne2 {[%clk 0:02:51]}  Nc7 {[%clk 0:02:59]} 9. O-O {[%clk 0:02:51]}  O-O {[%clk 0:02:57]} 10. Ng3 {[%clk 0:02:51]}  Nd5 {[%clk 0:02:52]} 11. Qc2 {[%clk 0:02:50]}  g6 {[%clk 0:02:51]} 12. Bd2 {[%clk 0:02:49]}  Re8 {[%clk 0:02:39]} 13. Rae1 {[%clk 0:02:49]}  Bd7 {[%clk 0:02:30]} 14. Rxe8+ {[%clk 0:02:47]}  Bxe8 {[%clk 0:02:31]} 15. Ne4 {[%clk 0:02:45]}  f5 {[%clk 0:02:27]} 16. Nxd6 {[%clk 0:02:45]}  Qxd6 {[%clk 0:02:27]} 17. Re1 {[%clk 0:02:45]}  Bd7 {[%clk 0:02:27]} 18. Qc1 {[%clk 0:02:45]}  Re8 {[%clk 0:02:25]} 19. Rxe8+ {[%clk 0:02:44]}  Bxe8 {[%clk 0:02:26]} 20. Qe1 {[%clk 0:02:44]}  Bd7 {[%clk 0:02:26]} 21. f4 {[%clk 0:02:34]}  f6 {[%clk 0:01:42]} 22. g3 {[%clk 0:02:33]}  h5 {[%clk 0:01:37]} 23. h4 {[%clk 0:02:05]}  Kf7 {[%clk 0:01:30]} 24. Kf2 {[%clk 0:02:04]}  Be6 {[%clk 0:01:25]} 25. a3 {[%clk 0:01:58]}  b5 {[%clk 0:01:22]} 26. Be3 {[%clk 0:01:32]}  Nb6 {[%clk 0:01:14]} 27. Be2 {[%clk 0:01:32]}  Bc4 {[%clk 0:01:09]} 28. Bd1 {[%clk 0:01:30]}  Bd5 {[%clk 0:00:55]} 29. Bc1 {[%clk 0:01:30]}  a5 {[%clk 0:00:53]} 30. c4 {[%clk 0:01:21]}  Nxc4 {[%clk 0:00:50]} 31. b3 {[%clk 0:01:20]}  Nxa3 {[%clk 0:00:42]} 32. Qxa5 {[%clk 0:01:20]}  b4 {[%clk 0:00:35]} 33. Bd2 {[%clk 0:01:15]}  Be4 {[%clk 0:00:29]} 34. Qxb4 {[%clk 0:01:12]}  Qxb4 {[%clk 0:00:22]} 35. Bxb4 {[%clk 0:01:13]}  Nb5 {[%clk 0:00:19]} 36. Ke3 {[%clk 0:01:11]}  Ke6 {[%clk 0:00:18]} 37. Be2 {[%clk 0:01:06]}  Bd5 {[%clk 0:00:18]} 38. Bc4 {[%clk 0:01:04]}  Kf7 {[%clk 0:00:14]} 39. Kd3 {[%clk 0:01:01]}  Ke6 {[%clk 0:00:13]} 40. Bc5 {[%clk 0:00:59]}  Kd7 {[%clk 0:00:11]} 41. Bb4 {[%clk 0:00:56]}  Ke6 {[%clk 0:00:11]} 42. Ke3 {[%clk 0:00:55]}  Kd7 {[%clk 0:00:11]} 43. Be1 {[%clk 0:00:44]}  Ke6 {[%clk 0:00:10]} 44. Kd3 {[%clk 0:00:38]}  Kd7 {[%clk 0:00:08]} 45. Bb4 {[%clk 0:00:35]}  Ke6 {[%clk 0:00:08]} 1/2-1/2


[Site "https://www.chess.com"]

[Event "Titled Tuesday Blitz July 4 Late 2023"]
[White "only_strong_moves"]
[Black "He, Anthony"]
[BlackFideId "2088215"]
[WhiteElo "2493"]
[BlackElo "2978"]
[Result "0-1"]
[Round "1"]
[TimeControl "180+2"]
[Date "2023.07.04"]
[WhiteClock "0:00:01"]
[BlackClock "0:00:42"]
[Board "20"]

1. d4 {[%clk 0:03:00]}  Nf6 {[%clk 0:02:52]} 2. c4 {[%clk 0:03:01]}  g6 {[%clk 0:02:52]} 3. Nc3 {[%clk 0:03:01]}  d5 {[%clk 0:02:53]} 4. cxd5 {[%clk 0:03:00]}  Nxd5 {[%clk 0:02:53]} 5. Nf3 {[%clk 0:03:01]}  Bg7 {[%clk 0:02:51]} 6. Qb3 {[%clk 0:03:01]}  Nb6 {[%clk 0:02:51]} 7. e4 {[%clk 0:02:55]}  O-O {[%clk 0:02:50]} 8. Be3 {[%clk 0:02:55]}  Nc6 {[%clk 0:02:50]} 9. d5 {[%clk 0:02:40]}  Ne5 {[%clk 0:02:44]} 10. Nxe5 {[%clk 0:02:34]}  Bxe5 {[%clk 0:02:45]} 11. f4 {[%clk 0:02:34]}  Bg7 {[%clk 0:02:45]} 12. Be2 {[%clk 0:02:33]}  e6 {[%clk 0:02:45]} 13. dxe6 {[%clk 0:02:08]}  Bxe6 {[%clk 0:02:46]} 14. Qc2 {[%clk 0:02:05]}  Nc4 {[%clk 0:02:44]} 15. Bxc4 {[%clk 0:01:57]}  Bxc4 {[%clk 0:02:45]} 16. Rd1 {[%clk 0:01:57]}  Qh4+ {[%clk 0:02:43]} 17. g3 {[%clk 0:01:49]}  Qg4 {[%clk 0:02:40]} 18. Kf2 {[%clk 0:01:47]}  Rfe8 {[%clk 0:02:37]} 19. b3 {[%clk 0:01:41]}  Be6 {[%clk 0:02:32]} 20. Bd4 {[%clk 0:01:41]}  Bf8 {[%clk 0:02:24]} 21. Nb5 {[%clk 0:01:34]}  c5 {[%clk 0:02:23]} 22. Ba1 {[%clk 0:01:30]}  c4 {[%clk 0:01:30]} 23. h3 {[%clk 0:01:07]}  Bc5+ {[%clk 0:01:19]} 24. Kg2 {[%clk 0:01:05]}  Qh5 {[%clk 0:01:19]} 25. Qb2 {[%clk 0:00:59]}  c3 {[%clk 0:01:14]} 26. Nxc3 {[%clk 0:00:58]}  f6 {[%clk 0:01:10]} 27. Na4 {[%clk 0:00:53]}  Be7 {[%clk 0:01:10]} 28. Qf2 {[%clk 0:00:46]}  Rac8 {[%clk 0:01:07]} 29. Rc1 {[%clk 0:00:45]}  b5 {[%clk 0:01:04]} 30. Nb2 {[%clk 0:00:41]}  Rxc1 {[%clk 0:00:54]} 31. Rxc1 {[%clk 0:00:40]}  Qxh3+ {[%clk 0:00:54]} 32. Kg1 {[%clk 0:00:39]}  Rd8 {[%clk 0:00:54]} 33. Nd1 {[%clk 0:00:36]}  Rd3 {[%clk 0:00:52]} 34. Ne3 {[%clk 0:00:33]}  Bd8 {[%clk 0:00:49]} 35. Nf1 {[%clk 0:00:05]}  Bb6 {[%clk 0:00:48]} 36. Rc5 {[%clk 0:00:06]}  Rd1 {[%clk 0:00:46]} 37. Bd4 {[%clk 0:00:05]}  Bxc5 {[%clk 0:00:43]} 38. Bxc5 {[%clk 0:00:06]}  Bg4 {[%clk 0:00:42]} 39. Qe3 {[%clk 0:00:01]}  Rxf1# {[%clk 0:00:42]} 0-1


[Site "https://www.chess.com"]

[Event "Titled Tuesday Blitz July 4 Late 2023"]
[White "Andreikin, Dmitry"]
[Black "Keleberda, Tymur"]
[WhiteFideId "4158814"]
[BlackFideId "14174294"]
[WhiteElo "2967"]
[BlackElo "2487"]
[Result "1-0"]
[Round "1"]
[TimeControl "180+2"]
[Date "2023.07.04"]
[WhiteClock "0:01:43"]
[BlackClock "0:00:22"]
[Board "23"]

1. Nf3 {[%clk 0:02:59]}  Nf6 {[%clk 0:02:58]} 2. c4 {[%clk 0:02:59]}  e6 {[%clk 0:02:35]} 3. Nc3 {[%clk 0:02:59]}  b6 {[%clk 0:02:32]} 4. e4 {[%clk 0:02:58]}  d6 {[%clk 0:02:31]} 5. d4 {[%clk 0:02:57]}  c5 {[%clk 0:02:31]} 6. d5 {[%clk 0:02:56]}  Be7 {[%clk 0:02:31]} 7. Bd3 {[%clk 0:02:55]}  O-O {[%clk 0:02:30]} 8. h3 {[%clk 0:02:55]}  a6 {[%clk 0:02:25]} 9. O-O {[%clk 0:02:53]}  Nbd7 {[%clk 0:02:09]} 10. Re1 {[%clk 0:02:51]}  Rb8 {[%clk 0:02:07]} 11. a4 {[%clk 0:02:49]}  Re8 {[%clk 0:02:01]} 12. b3 {[%clk 0:02:48]}  Nf8 {[%clk 0:02:00]} 13. dxe6 {[%clk 0:02:41]}  fxe6 {[%clk 0:01:59]} 14. e5 {[%clk 0:02:38]}  dxe5 {[%clk 0:01:51]} 15. Nxe5 {[%clk 0:02:39]}  Qc7 {[%clk 0:01:51]} 16. Bf4 {[%clk 0:02:38]}  Bd6 {[%clk 0:01:50]} 17. Ra2 {[%clk 0:02:30]}  Bb7 {[%clk 0:01:49]} 18. Rd2 {[%clk 0:02:28]}  Rbd8 {[%clk 0:01:49]} 19. Qe2 {[%clk 0:02:28]}  N6d7 {[%clk 0:01:40]} 20. Rdd1 {[%clk 0:02:09]}  Nxe5 {[%clk 0:01:29]} 21. Bxe5 {[%clk 0:02:10]}  Bxe5 {[%clk 0:01:28]} 22. Qxe5 {[%clk 0:02:10]}  Qxe5 {[%clk 0:01:27]} 23. Rxe5 {[%clk 0:02:11]}  Rd4 {[%clk 0:01:21]} 24. Ne2 {[%clk 0:02:02]}  Rd6 {[%clk 0:01:20]} 25. Bxh7+ {[%clk 0:02:01]}  Kxh7 {[%clk 0:01:07]} 26. Rxd6 {[%clk 0:02:02]}  b5 {[%clk 0:00:57]} 27. axb5 {[%clk 0:02:01]}  axb5 {[%clk 0:00:58]} 28. cxb5 {[%clk 0:02:02]}  Bd5 {[%clk 0:00:58]} 29. Rdxd5 {[%clk 0:02:02]}  Rb8 {[%clk 0:00:58]} 30. Rxc5 {[%clk 0:02:01]}  Nd7 {[%clk 0:00:57]} 31. b4 {[%clk 0:02:00]}  Kg6 {[%clk 0:00:51]} 32. Kh1 {[%clk 0:02:00]}  Kf6 {[%clk 0:00:49]} 33. f4 {[%clk 0:02:00]}  Ra8 {[%clk 0:00:43]} 34. Ng1 {[%clk 0:01:59]}  Ra1 {[%clk 0:00:43]} 35. Kh2 {[%clk 0:01:59]}  Rb1 {[%clk 0:00:42]} 36. Nf3 {[%clk 0:01:54]}  Rxb4 {[%clk 0:00:41]} 37. Rc7 {[%clk 0:01:53]}  Nxe5 {[%clk 0:00:39]} 38. Nxe5 {[%clk 0:01:54]}  Kf5 {[%clk 0:00:33]} 39. Rxg7 {[%clk 0:01:53]}  Rxb5 {[%clk 0:00:30]} 40. Rg4 {[%clk 0:01:51]}  Rb8 {[%clk 0:00:28]} 41. Nf3 {[%clk 0:01:51]}  Rb2 {[%clk 0:00:25]} 42. Rg5+ {[%clk 0:01:46]}  Kf6 {[%clk 0:00:25]} 43. Kg3 {[%clk 0:01:44]}  Rb3 {[%clk 0:00:24]} 44. h4 {[%clk 0:01:44]}  Rb1 {[%clk 0:00:23]} 45. h5 {[%clk 0:01:44]}  Rb7 {[%clk 0:00:20]} 46. h6 {[%clk 0:01:43]}  Rh7 {[%clk 0:00:20]} 47. Ne5 {[%clk 0:01:44]}  Rxh6 {[%clk 0:00:19]} 48. Ng4+ {[%clk 0:01:44]}  Kf7 {[%clk 0:00:20]} 49. Nxh6+ {[%clk 0:01:45]}  Ke7 {[%clk 0:00:21]} 50. Ng4 {[%clk 0:01:45]}  e5 {[%clk 0:00:21]} 51. Rxe5+ {[%clk 0:01:43]}  Kd6 {[%clk 0:00:22]} 1-0


[Site "https://www.chess.com"]

[Event "Titled Tuesday Blitz July 4 Late 2023"]
[White "Makarian, Rudik"]
[Black "Adury, Anant"]
[WhiteFideId "44105681"]
[BlackFideId "30964687"]
[WhiteElo "2960"]
[BlackElo "2485"]
[Result "1-0"]
[Round "1"]
[TimeControl "180+2"]
[Date "2023.07.04"]
[WhiteClock "0:01:36"]
[BlackClock "0:00:11"]
[Board "25"]

1. d4 {[%clk 0:02:59]}  g6 {[%clk 0:02:58]} 2. c4 {[%clk 0:02:59]}  Bg7 {[%clk 0:02:51]} 3. Nf3 {[%clk 0:03:00]}  f6 {[%clk 0:02:51]} 4. e4 {[%clk 0:02:59]}  e6 {[%clk 0:02:49]} 5. Nc3 {[%clk 0:02:59]}  Ne7 {[%clk 0:02:49]} 6. Be2 {[%clk 0:02:59]}  O-O {[%clk 0:02:49]} 7. O-O {[%clk 0:03:00]}  d5 {[%clk 0:02:49]} 8. h3 {[%clk 0:02:54]}  b6 {[%clk 0:02:28]} 9. Bf4 {[%clk 0:02:47]}  Bb7 {[%clk 0:02:27]} 10. exd5 {[%clk 0:02:46]}  exd5 {[%clk 0:02:27]} 11. Re1 {[%clk 0:02:47]}  Kh8 {[%clk 0:02:10]} 12. Rc1 {[%clk 0:02:38]}  Nbc6 {[%clk 0:01:32]} 13. cxd5 {[%clk 0:02:22]}  Nxd5 {[%clk 0:01:26]} 14. Nxd5 {[%clk 0:02:20]}  Qxd5 {[%clk 0:01:27]} 15. Bc4 {[%clk 0:02:20]}  Qd7 {[%clk 0:01:14]} 16. Be6 {[%clk 0:02:20]}  Qd8 {[%clk 0:01:13]} 17. d5 {[%clk 0:02:20]}  Ne5 {[%clk 0:01:13]} 18. Nxe5 {[%clk 0:02:12]}  fxe5 {[%clk 0:01:12]} 19. Bxe5 {[%clk 0:02:11]}  Bxe5 {[%clk 0:01:12]} 20. Rxe5 {[%clk 0:02:12]}  Qf6 {[%clk 0:01:06]} 21. Re2 {[%clk 0:02:07]}  Ba6 {[%clk 0:00:52]} 22. Rd2 {[%clk 0:02:05]}  c5 {[%clk 0:00:52]} 23. Rc3 {[%clk 0:01:55]}  Rad8 {[%clk 0:00:44]} 24. Rf3 {[%clk 0:01:51]}  Qe5 {[%clk 0:00:44]} 25. Re3 {[%clk 0:01:48]}  Qf6 {[%clk 0:00:37]} 26. Qa4 {[%clk 0:01:47]}  Bc8 {[%clk 0:00:16]} 27. Bxc8 {[%clk 0:01:45]}  Rxc8 {[%clk 0:00:16]} 28. d6 {[%clk 0:01:44]}  Rcd8 {[%clk 0:00:14]} 29. d7 {[%clk 0:01:44]}  a5 {[%clk 0:00:12]} 30. Re8 {[%clk 0:01:42]}  Qf7 {[%clk 0:00:11]} 31. Rxf8+ {[%clk 0:01:39]}  Qxf8 {[%clk 0:00:10]} 32. Qc6 {[%clk 0:01:36]}  Qf6 {[%clk 0:00:11]} 1-0


[Site "https://www.chess.com"]

[Event "Titled Tuesday Blitz July 4 Late 2023"]
[White "Yeritsyan, Hayk"]
[Black "Oparin, Grigoriy"]
[WhiteFideId "13307320"]
[BlackFideId "24125890"]
[WhiteElo "2482"]
[BlackElo "2949"]
[Result "0-1"]
[Round "1"]
[TimeControl "180+2"]
[Date "2023.07.04"]
[WhiteClock "0:00:02"]
[BlackClock "0:00:25"]
[Board "26"]

1. d4 {[%clk 0:02:57]}  d5 {[%clk 0:02:58]} 2. Nf3 {[%clk 0:02:57]}  Nf6 {[%clk 0:02:57]} 3. e3 {[%clk 0:02:58]}  e6 {[%clk 0:02:57]} 4. Bd3 {[%clk 0:02:59]}  b6 {[%clk 0:02:55]} 5. Ne5 {[%clk 0:02:58]}  Bb7 {[%clk 0:02:55]} 6. Nd2 {[%clk 0:02:57]}  Bd6 {[%clk 0:02:54]} 7. f4 {[%clk 0:02:58]}  O-O {[%clk 0:02:54]} 8. Qf3 {[%clk 0:02:57]}  c5 {[%clk 0:02:49]} 9. c3 {[%clk 0:02:57]}  Nbd7 {[%clk 0:02:50]} 10. O-O {[%clk 0:02:57]}  g6 {[%clk 0:02:45]} 11. g4 {[%clk 0:02:55]}  a5 {[%clk 0:02:43]} 12. Rf2 {[%clk 0:02:52]}  Ne8 {[%clk 0:02:39]} 13. Qh3 {[%clk 0:02:47]}  Ng7 {[%clk 0:02:34]} 14. Qh6 {[%clk 0:02:37]}  f5 {[%clk 0:02:15]} 15. gxf5 {[%clk 0:02:34]}  exf5 {[%clk 0:02:13]} 16. Ndf3 {[%clk 0:02:24]}  Nf6 {[%clk 0:02:13]} 17. Ng5 {[%clk 0:02:06]}  Qe7 {[%clk 0:02:13]} 18. Rg2 {[%clk 0:01:53]}  Ba6 {[%clk 0:01:14]} 19. Bc2 {[%clk 0:01:12]}  Nge8 {[%clk 0:01:07]} 20. Nxh7 {[%clk 0:00:51]}  Qxh7 {[%clk 0:00:55]} 21. Rxg6+ {[%clk 0:00:49]}  Kh8 {[%clk 0:00:35]} 22. Bxf5 {[%clk 0:00:15]}  Bxe5 {[%clk 0:00:31]} 23. fxe5 {[%clk 0:00:10]}  Ne4 {[%clk 0:00:25]} 24. Rg8+ {[%clk 0:00:02]}  Rxg8+ {[%clk 0:00:25]} 0-1


[Site "https://www.chess.com"]

[Event "Titled Tuesday Blitz July 4 Late 2023"]
[White "Svane, Rasmus"]
[Black "Hamitevici, Vladimir"]
[WhiteFideId "4657101"]
[BlackFideId "13902393"]
[WhiteElo "2949"]
[BlackElo "2478"]
[Result "0-1"]
[Round "1"]
[TimeControl "180+2"]
[Date "2023.07.04"]
[WhiteClock "0:00:01"]
[BlackClock "0:00:13"]
[Board "27"]

1. Nf3 {[%clk 0:03:00]}  d5 {[%clk 0:02:58]} 2. g3 {[%clk 0:03:00]}  Nf6 {[%clk 0:02:58]} 3. Bg2 {[%clk 0:03:00]}  e6 {[%clk 0:02:58]} 4. O-O {[%clk 0:03:00]}  Be7 {[%clk 0:02:56]} 5. c4 {[%clk 0:02:59]}  O-O {[%clk 0:02:54]} 6. b3 {[%clk 0:03:00]}  c5 {[%clk 0:02:52]} 7. cxd5 {[%clk 0:02:59]}  exd5 {[%clk 0:02:46]} 8. d4 {[%clk 0:02:59]}  Nc6 {[%clk 0:02:44]} 9. Bb2 {[%clk 0:02:59]}  Ne4 {[%clk 0:02:37]} 10. dxc5 {[%clk 0:02:51]}  Bxc5 {[%clk 0:02:31]} 11. Nc3 {[%clk 0:02:51]}  Be6 {[%clk 0:02:22]} 12. Rc1 {[%clk 0:02:51]}  Qe7 {[%clk 0:02:15]} 13. Nxd5 {[%clk 0:02:44]}  Bxd5 {[%clk 0:02:13]} 14. Qxd5 {[%clk 0:02:45]}  Rad8 {[%clk 0:02:04]} 15. Qc4 {[%clk 0:02:45]}  Bb6 {[%clk 0:01:58]} 16. e3 {[%clk 0:02:19]}  Rfe8 {[%clk 0:01:49]} 17. Rfe1 {[%clk 0:02:14]}  Na5 {[%clk 0:01:14]} 18. Qe2 {[%clk 0:02:09]}  Nc6 {[%clk 0:01:12]} 19. Red1 {[%clk 0:02:06]}  Nxf2 {[%clk 0:00:58]} 20. Rxd8 {[%clk 0:01:52]}  Nxd8 {[%clk 0:00:50]} 21. Kxf2 {[%clk 0:01:52]}  Qxe3+ {[%clk 0:00:41]} 22. Qxe3 {[%clk 0:01:51]}  Bxe3+ {[%clk 0:00:42]} 23. Kf1 {[%clk 0:01:51]}  Bxc1 {[%clk 0:00:43]} 24. Bxc1 {[%clk 0:01:52]}  Nc6 {[%clk 0:00:42]} 25. Bb2 {[%clk 0:01:50]}  Nb4 {[%clk 0:00:40]} 26. a3 {[%clk 0:01:42]}  Nd3 {[%clk 0:00:40]} 27. Bc3 {[%clk 0:01:41]}  Nc5 {[%clk 0:00:35]} 28. Nd2 {[%clk 0:01:33]}  b6 {[%clk 0:00:28]} 29. Bd4 {[%clk 0:01:33]}  Rd8 {[%clk 0:00:26]} 30. Bxc5 {[%clk 0:01:27]}  Rxd2 {[%clk 0:00:26]} 31. Be7 {[%clk 0:00:59]}  Rd3 {[%clk 0:00:26]} 32. b4 {[%clk 0:00:56]}  Rxa3 {[%clk 0:00:25]} 33. b5 {[%clk 0:00:48]}  Ra2 {[%clk 0:00:25]} 34. h4 {[%clk 0:00:47]}  a6 {[%clk 0:00:22]} 35. Bc6 {[%clk 0:00:46]}  axb5 {[%clk 0:00:20]} 36. Bxb5 {[%clk 0:00:47]}  h5 {[%clk 0:00:18]} 37. Be2 {[%clk 0:00:44]}  Rb2 {[%clk 0:00:18]} 38. Bxh5 {[%clk 0:00:44]}  b5 {[%clk 0:00:19]} 39. Be2 {[%clk 0:00:36]}  b4 {[%clk 0:00:18]} 40. Bc5 {[%clk 0:00:13]}  b3 {[%clk 0:00:17]} 41. Bd1 {[%clk 0:00:11]}  Rb1 {[%clk 0:00:15]} 42. Ke2 {[%clk 0:00:11]}  b2 {[%clk 0:00:16]} 43. Bd4 {[%clk 0:00:06]}  Rxd1 {[%clk 0:00:14]} 44. Bxb2 {[%clk 0:00:06]}  Rh1 {[%clk 0:00:12]} 45. Kf3 {[%clk 0:00:06]}  f6 {[%clk 0:00:12]} 46. Bd4 {[%clk 0:00:06]}  Kf7 {[%clk 0:00:13]} 47. Bc5 {[%clk 0:00:05]}  Kg6 {[%clk 0:00:13]} 48. Bf8 {[%clk 0:00:05]}  Rb1 {[%clk 0:00:13]} 49. g4 {[%clk 0:00:05]}  Rb3+ {[%clk 0:00:13]} 50. Kf4 {[%clk 0:00:05]}  Rb8 {[%clk 0:00:13]} 51. h5+ {[%clk 0:00:05]}  Kf7 {[%clk 0:00:13]} 52. Bc5 {[%clk 0:00:06]}  Ke6 {[%clk 0:00:13]} 53. Be3 {[%clk 0:00:05]}  Rb4+ {[%clk 0:00:12]} 54. Kf3 {[%clk 0:00:05]}  Ke5 {[%clk 0:00:13]} 55. Bd2 {[%clk 0:00:05]}  Rb3+ {[%clk 0:00:12]} 56. Kg2 {[%clk 0:00:01]}  Rb2 {[%clk 0:00:13]} 0-1


[Site "https://www.chess.com"]

[Event "Titled Tuesday Blitz July 4 Late 2023"]
[White "Fiedorek, Michal"]
[Black "Sanal, Vahap"]
[WhiteFideId "1199528"]
[BlackFideId "6300545"]
[WhiteElo "2467"]
[BlackElo "2892"]
[Result "0-1"]
[Round "1"]
[TimeControl "180+2"]
[Date "2023.07.04"]
[WhiteClock "0:00:03"]
[BlackClock "0:00:44"]
[Board "36"]

1. d4 {[%clk 0:02:52]}  d6 {[%clk 0:02:59]} 2. e4 {[%clk 0:02:52]}  Nf6 {[%clk 0:02:59]} 3. Nc3 {[%clk 0:02:52]}  e5 {[%clk 0:02:58]} 4. Nf3 {[%clk 0:02:52]}  Nbd7 {[%clk 0:02:58]} 5. Bc4 {[%clk 0:02:52]}  Be7 {[%clk 0:02:56]} 6. O-O {[%clk 0:02:52]}  O-O {[%clk 0:02:56]} 7. h3 {[%clk 0:02:52]}  c6 {[%clk 0:02:41]} 8. a4 {[%clk 0:02:52]}  h6 {[%clk 0:02:40]} 9. Re1 {[%clk 0:02:51]}  Re8 {[%clk 0:02:40]} 10. a5 {[%clk 0:02:46]}  Rb8 {[%clk 0:02:39]} 11. Be3 {[%clk 0:02:45]}  b5 {[%clk 0:02:37]} 12. axb6 {[%clk 0:02:45]}  axb6 {[%clk 0:02:38]} 13. dxe5 {[%clk 0:02:44]}  dxe5 {[%clk 0:02:35]} 14. Bb3 {[%clk 0:02:38]}  Qc7 {[%clk 0:02:32]} 15. Qe2 {[%clk 0:02:29]}  Nc5 {[%clk 0:02:29]} 16. Bxc5 {[%clk 0:02:21]}  Bxc5 {[%clk 0:02:29]} 17. Rad1 {[%clk 0:02:18]}  b5 {[%clk 0:02:26]} 18. Nh4 {[%clk 0:02:14]}  Bd4 {[%clk 0:02:12]} 19. Qf3 {[%clk 0:02:12]}  Be6 {[%clk 0:02:07]} 20. Nf5 {[%clk 0:02:07]}  Bxf5 {[%clk 0:02:07]} 21. Qxf5 {[%clk 0:02:07]}  Rbd8 {[%clk 0:02:07]} 22. Rd3 {[%clk 0:02:03]}  Rd6 {[%clk 0:02:06]} 23. Rg3 {[%clk 0:01:59]}  Kf8 {[%clk 0:02:05]} 24. Rd3 {[%clk 0:01:35]}  Ng8 {[%clk 0:01:54]} 25. Rf3 {[%clk 0:01:22]}  Nf6 {[%clk 0:01:48]} 26. Rd3 {[%clk 0:01:19]}  Red8 {[%clk 0:01:47]} 27. Red1 {[%clk 0:01:19]}  g6 {[%clk 0:01:44]} 28. Qf3 {[%clk 0:01:15]}  Nh5 {[%clk 0:01:42]} 29. R3d2 {[%clk 0:00:50]}  Rf6 {[%clk 0:01:34]} 30. Qg4 {[%clk 0:00:38]}  Nf4 {[%clk 0:01:34]} 31. Qh4 {[%clk 0:00:32]}  Kg7 {[%clk 0:01:30]} 32. Kh2 {[%clk 0:00:18]}  Rdd6 {[%clk 0:01:08]} 33. Qg3 {[%clk 0:00:17]}  Nh5 {[%clk 0:01:06]} 34. Qh4 {[%clk 0:00:16]}  Rf4 {[%clk 0:01:05]} 35. g4 {[%clk 0:00:16]}  Nf6 {[%clk 0:01:04]} 36. Qg3 {[%clk 0:00:13]}  b4 {[%clk 0:00:55]} 37. Ne2 {[%clk 0:00:13]}  Nxe4 {[%clk 0:00:46]} 38. Nxd4 {[%clk 0:00:08]}  Nxg3 {[%clk 0:00:44]} 39. Ne6+ {[%clk 0:00:03]}  Rxe6 {[%clk 0:00:44]} 40. fxg3 {[%clk 0:00:04]}  Rff6 {[%clk 0:00:43]} 41. Bxe6 {[%clk 0:00:03]}  Rxe6 {[%clk 0:00:43]} 42. Rd7 {[%clk 0:00:04]}  Qb6 {[%clk 0:00:43]} 43. Rf1 {[%clk 0:00:03]}  Rf6 {[%clk 0:00:44]} 0-1


[Site "https://www.chess.com"]